bitfinex-derivatives/quotes_ETHF0:USTF0_20240923
["timestamp","ask_amount","ask_price","bid_price","bid_amount"]
[1727053738405,0.6267,2607.7,2606.7,3.2078]
[1727053738607,0.6267,2607.7,2607.0,0.38355]
[1727053738811,0.38351,2607.4,2606.9,0.38357]
[1727053739019,4.79315,2607.7,2606.9,0.38357]
[1727053739520,0.38351,2607.4,2606.8,0.38358]
[1727053739723,4.79315,2607.7,2606.8,0.38358]
[1727053739923,0.38351,2607.4,2606.9,0.38357]
[1727053740521,0.38351,2607.4,2607.0,3.2078]
[1727053740824,3.2078,2608.1,2607.0,3.2078]
[1727053741011,0.95847,2608.2,2607.4,0.38349]
[1727053741012,3.2078,2607.8,2607.4,0.38349]
[1727053741213,3.2078,2608.2,2607.3,3.2078]
[1727053741517,0.38346,2607.7,2607.3,3.2078]
[1727053741908,0.38346,2607.7,2606.8,8.25029912]
[1727053741909,0.95865,2607.7,2607.0,3.2078]
[1727053742224,0.38354,2607.2,2606.7,3.5914]
[1727053742510,3.2078,2607.8,2606.4,1.49974]
[1727053742511,0.38358,2606.9,2606.4,1.49974]
[1727053742732,0.38357,2607.0,2606.8,3.2078]
[1727053742910,0.38357,2606.9,2606.5,0.38363]
[1727053743111,0.38357,2607.0,2606.5,0.38363]
[1727053743311,0.95887,2607.1,2606.0,3.2078]
[1727053743514,0.38367,2606.3,2606.0,3.2078]
[1727053743922,0.38366,2606.3,2606.0,3.2078]
[1727053744315,0.38366,2606.4,2606.0,3.2078]
[1727053744518,0.38364,2606.5,2606.0,3.59149]
[1727053744719,0.95901,2606.8,2606.0,3.2078]
[1727053744926,0.38359,2606.8,2606.0,3.2078]
[1727053745126,0.38357,2606.9,2606.4,0.38365]
[1727053745329,0.38355,2607.1,2606.6,0.38361]
[1727053745618,0.96439,2607.5,2607.0,0.38355]
[1727053745826,0.5883,2607.9,2607.0,3.2078]
[1727053746024,0.5883,2607.9,2607.1,0.38354]
[1727053746326,0.5883,2607.9,2607.4,0.38349]
[1727053746327,0.97174,2607.9,2607.4,0.38349]
[1727053746623,0.38342,2608.0,2607.5,0.38348]
[1727053746819,0.5973,2608.2,2607.3,3.2078]
[1727053747033,3.2078,2608.3,2607.8,0.38343]
[1727053747214,3.2078,2608.3,2607.6,3.2078]
[1727053747215,3.59118,2608.3,2607.7,0.38344]
[1727053747415,3.59118,2608.3,2607.7,0.38345]
[1727053747615,3.59118,2608.3,2607.3,3.2078]
[1727053747616,3.2078,2608.3,2607.3,3.2078]
[1727053747815,3.59117,2608.3,2607.6,3.2078]
[1727053748015,3.59117,2608.3,2607.8,0.38344]
[1727053748417,0.38337,2608.3,2607.8,0.38344]
[1727053749221,0.38337,2608.3,2607.7,0.38345]
[1727053749624,0.38337,2608.3,2607.8,0.38344]
[1727053750233,0.38337,2608.3,2607.7,0.38345]
[1727053750417,0.38337,2608.3,2607.8,0.38344]
[1727053750721,0.38336,2608.4,2607.8,0.38344]
[1727053750926,0.38337,2608.3,2607.8,0.38344]
[1727053751133,0.38336,2608.4,2607.8,0.38344]
[1727053751328,4.1892237,2608.6,2608.0,0.38341]
[1727053751528,4.1892237,2608.6,2607.9,3.59122]
[1727053751529,0.9814237,2608.5,2607.9,3.59122]
[1727053751730,4.1892237,2608.6,2607.9,3.2078]
[1727053752228,1.49937094,2608.7,2608.3,3.59117]
[1727053752229,0.9814237,2608.7,2608.3,3.59117]
[1727053752821,0.9814237,2608.7,2608.4,0.38335]
[1727053753026,1.3647437,2608.7,2608.3,3.2078]
[1727053753325,0.9814237,2608.7,2608.3,3.2078]
[1727053753521,0.9814237,2608.7,2608.4,0.38334]
[1727053753726,0.9814237,2608.8,2608.3,3.2078]
[1727053754029,0.38333,2608.6,2608.1,0.38338]
[1727053754325,0.38333,2608.6,2607.7,0.5872]
[1727053754326,0.38342,2608.0,2607.7,0.5872]
[1727053754718,0.9814237,2608.1,2607.7,0.5872]
[1727053754918,1.99916126,2608.4,2607.9,3.2078]
[1727053754919,0.9814237,2608.3,2607.9,3.2078]
[1727053755222,0.9814237,2608.4,2607.9,3.2078]
[1727053755431,1.49937094,2608.6,2608.1,0.38339]
[1727053755432,0.9814237,2608.5,2608.1,0.38339]
[1727053755920,0.9814237,2608.5,2607.9,3.2078]
[1727053755921,1.3647637,2608.5,2608.0,0.3834]
[1727053756121,1.3647637,2608.5,2608.1,0.3834]
[1727053756326,1.3647637,2608.5,2607.9,3.2078]
[1727053756327,0.9814237,2608.6,2607.9,3.2078]
[1727053756517,0.9814237,2608.8,2608.7,0.38331]
[1727053756724,0.9814237,2608.8,2608.1,3.85847]
[1727053756725,0.9814237,2608.8,2608.1,6.1078]
[1727053756924,0.3833,2608.8,2608.4,3.59114]
[1727053757125,1.49937094,2608.6,2608.0,3.2078]
[1727053757342,0.38344,2607.8,2607.7,0.5872]
[1727053757521,0.38346,2607.7,2607.3,0.38351]
[1727053758334,0.38346,2607.7,2607.3,3.2078]
[1727053758335,0.3835,2607.4,2607.3,3.2078]
[1727053758626,0.99884505,2607.4,2606.9,3.7979]
[1727053758930,0.99884505,2607.5,2606.9,3.2078]
[1727053759135,0.38356,2607.0,2606.9,3.2078]
[1727053759429,0.38359,2606.8,2606.5,3.2078]
[1727053759622,0.99884505,2607.0,2606.5,3.2078]
[1727053759821,0.99884505,2607.2,2606.9,3.2078]
[1727053760022,1.38236505,2607.3,2606.9,3.2078]
[1727053760222,1.38233505,2607.5,2607.0,0.38355]
[1727053760430,2.4856939,2607.5,2607.0,0.38355]
[1727053760725,0.99884505,2607.5,2606.9,3.2078]
[1727053760933,0.99884505,2607.5,2607.0,0.38356]
[1727053761135,1.38233505,2607.5,2607.0,0.38356]
[1727053761324,0.99884505,2607.7,2606.9,3.2078]
[1727053761525,0.99884505,2607.8,2607.2,3.2078]
[1727053761824,0.99884505,2607.8,2607.5,3.2078]
[1727053761825,0.9989611,2607.7,2607.5,3.2078]
[1727053762034,0.9989611,2607.7,2607.6,0.38347]
[1727053762223,0.9989611,2607.7,2607.5,3.59128]
[1727053762420,0.9989611,2607.7,2607.6,3.8352]
[1727053763127,0.9989611,2607.8,2607.6,3.8352]
[1727053763328,0.9989611,2607.8,2607.7,3.8344]
[1727053763522,0.9989611,2607.8,2607.6,0.38346]
[1727053764221,0.9989611,2607.9,2607.8,0.38344]
[1727053764428,0.9989611,2607.9,2607.8,3.2078]
[1727053764638,0.9989611,2607.9,2607.8,0.38344]
[1727053764929,0.9989611,2607.9,2607.8,3.59124]
[1727053765127,0.9989611,2608.1,2607.8,3.2078]
[1727053765325,0.9989611,2608.1,2608.0,0.38341]
[1727053765720,2.49895157,2608.5,2608.4,0.38335]
[1727053765721,1.49937094,2608.5,2608.4,0.38335]
[1727053765924,1.49937094,2608.8,2608.7,0.38331]
[1727053766122,1.49937094,2609.0,2608.7,3.2078]
[1727053766333,1.49937094,2609.3,2608.8,0.6308]
[1727053766538,1.49937094,2609.5,2609.1,3.2078]
[1727053766831,1.88252094,2609.8,2609.2,0.38323]
[1727053767029,1.88253094,2609.7,2609.2,0.38323]
[1727053767233,1.49937094,2609.7,2609.5,0.38319]
[1727053767425,1.49937094,2610.0,2609.5,0.38319]
[1727053767635,1.49937094,2610.0,2609.4,3.2078]
[1727053767826,1.49937094,2610.1,2609.4,3.2078]
[1727053768019,1.49937094,2610.1,2609.2,2.9]
[1727053768020,1.49937094,2610.3,2610.0,0.38311]
[1727053768225,1.49937094,2610.3,2610.1,0.38309]
[1727053768428,1.49937094,2610.8,2610.1,3.8312]
[1727053768637,2.49895157,2611.1,2610.3,3.2078]
[1727053768638,1.49937094,2610.9,2610.3,3.2078]
[1727053768832,0.38296,2611.1,2610.3,3.59087]
[1727053769039,3.59075,2611.2,2610.4,0.38305]
[1727053769224,3.59075,2611.2,2610.7,3.2078]
[1727053769225,3.2078,2611.2,2610.7,3.2078]
[1727053770727,3.2078,2611.2,2610.5,0.38304]
[1727053771035,3.2078,2611.2,2610.7,3.2078]
[1727053771234,3.2078,2611.9,2610.7,3.2078]
[1727053771435,2.9,2612.3,2610.1,0.6076]
[1727053771436,0.5921,2612.3,2611.6,3.2078]
[1727053772342,0.5921,2612.3,2611.6,3.59068]
[1727053772628,0.38274,2612.6,2611.6,3.59068]
[1727053773038,4.16463,2612.7,2611.6,3.2078]
[1727053773227,0.38279,2612.3,2611.6,3.2078]
[1727053773630,0.38283,2612.0,2611.0,3.59076]
[1727053774041,0.38283,2612.0,2611.0,3.2078]
[1727053774235,3.2078,2612.1,2611.0,3.2078]
[1727053774436,0.38287,2611.7,2611.0,3.2078]
[1727053775134,0.5927,2612.0,2611.0,3.2078]
[1727053775333,0.95677,2612.9,2611.6,3.59067]
[1727053775334,3.2078,2612.5,2611.6,3.59067]
[1727053775537,0.6188,2613.1,2611.9,0.38283]
[1727053775538,3.59052,2612.8,2611.9,0.38283]
[1727053775738,0.38273,2612.7,2611.6,3.2078]
[1727053775929,0.38271,2612.8,2611.9,3.2078]
[1727053776241,0.38271,2612.8,2611.9,3.59063]
[1727053776429,0.5927,2613.0,2611.9,3.2078]
[1727053776430,0.97538,2613.0,2611.9,3.2078]
[1727053776631,0.5927,2613.0,2612.2,3.2078]
[1727053776833,3.2078,2612.8,2612.1,0.38281]
[1727053777139,3.2078,2612.8,2612.0,0.38282]
[1727053777331,3.2078,2612.8,2612.2,0.38279]
[1727053777534,3.2078,2612.8,2611.9,0.38284]
[1727053777838,3.2078,2612.8,2611.8,6.1078]
[1727053778035,3.59051,2612.8,2611.9,0.38283]
[1727053778236,3.2078,2612.8,2612.2,0.38279]
[1727053778534,3.59051,2612.8,2612.0,0.38282]
[1727053778732,3.2078,2612.8,2611.9,0.38284]
[1727053779033,3.2078,2612.8,2612.1,0.3828]
[1727053779237,1.49937094,2613.2,2612.4,3.2078]
[1727053779440,3.2078,2613.6,2612.4,3.2078]
[1727053779643,3.2078,2613.7,2612.8,0.3827]
[1727053779844,3.2078,2613.7,2612.7,3.2078]
[1727053780035,0.3826,2613.6,2612.8,0.3827]
[1727053780545,0.38265,2613.2,2612.5,0.639]
[1727053780845,0.38267,2613.1,2612.5,0.639]
[1727053781237,3.59043,2613.4,2612.6,0.38273]
[1727053781537,0.3826,2613.6,2612.7,3.2078]
[1727053781747,0.3826,2613.6,2612.9,0.38269]
[1727053782043,3.59038,2613.7,2612.7,3.2078]
[1727053782341,3.2078,2613.7,2612.7,3.2078]
[1727053782541,0.38259,2613.6,2612.9,0.38268]
[1727053782740,3.2078,2613.7,2612.6,2.9]
[1727053782938,0.38262,2613.4,2612.8,0.38271]
[1727053783338,0.38269,2613.0,2612.5,1.2279]
[1727053783540,0.3827,2612.9,2612.5,0.639]
[1727053783941,0.38267,2613.1,2612.5,0.639]
[1727053784243,0.38269,2612.9,2612.5,0.639]
[1727053784440,3.2078,2613.2,2612.5,0.639]
[1727053784946,0.38269,2613.0,2612.5,0.639]
[1727053785250,3.2078,2613.2,2612.5,1.02175]
[1727053785251,0.38267,2613.1,2612.5,1.02175]
[1727053785640,0.38267,2613.1,2612.5,0.639]
[1727053786040,3.2078,2613.2,2612.5,0.639]
[1727053786247,0.38275,2612.5,2612.1,3.2078]
[1727053786546,3.2078,2613.0,2612.5,0.38275]
[1727053786842,3.2078,2613.0,2612.2,2.9]
[1727053787043,3.2078,2613.0,2612.2,0.38279]
[1727053787242,0.38271,2612.8,2612.2,0.38279]
[1727053787539,0.38272,2612.8,2612.2,0.38279]
[1727053787951,0.38272,2612.7,2612.2,3.2078]
[1727053788146,3.2078,2613.0,2612.2,3.2078]
[1727053788147,0.38275,2612.5,2612.2,3.2078]
[1727053788447,0.38278,2612.4,2611.9,3.2078]
[1727053788743,3.2078,2612.6,2612.0,0.38282]
[1727053788936,0.38273,2612.7,2612.1,0.38281]
[1727053789139,0.38275,2612.6,2612.0,0.38282]
[1727053789342,4.16461,2612.7,2611.9,3.2078]
[1727053789546,4.16461,2612.7,2611.8,0.38285]
[1727053789743,3.2078,2612.2,2611.5,0.6353]
[1727053789944,3.5195,2612.8,2611.3,3.2078]
[1727053789945,0.38288,2611.6,2611.3,3.2078]
[1727053790136,4.16494,2611.8,2610.9,0.6116]
[1727053790440,4.16494,2611.8,2610.7,3.2078]
[1727053790441,3.2078,2611.6,2610.7,3.2078]
[1727053790645,0.38293,2611.3,2610.7,3.59081]
[1727053790950,0.38293,2611.3,2610.8,0.383]
[1727053791154,3.2078,2611.5,2610.7,3.59081]
[1727053791450,4.16512,2611.3,2610.3,3.2078]
[1727053791656,0.38297,2611.0,2610.4,0.38305]
[1727053791845,4.16512,2611.3,2610.3,3.2078]
[1727053791846,0.383,2610.8,2610.3,3.2078]
[1727053792041,0.38304,2610.6,2610.3,3.2078]
[1727053792245,0.95747,2611.0,2609.8,3.2078]
[1727053792446,0.38305,2610.5,2609.9,0.38312]
[1727053792650,0.383,2610.9,2610.2,0.38308]
[1727053792952,0.38301,2610.8,2609.8,3.2078]
[1727053793155,0.38301,2610.8,2610.1,0.38309]
[1727053793451,3.2078,2611.1,2610.3,0.38307]
[1727053793452,0.38299,2610.9,2610.3,0.38307]
[1727053793646,0.38302,2610.7,2610.0,0.3831]
[1727053793951,0.38302,2610.7,2609.8,3.2078]
[1727053793952,0.38302,2610.7,2610.1,0.3831]
[1727053794149,0.383,2610.8,2610.2,0.38309]
[1727053794344,3.2078,2610.9,2610.2,0.38308]
[1727053794345,3.5908,2610.9,2610.2,0.38308]
[1727053794654,0.383,2610.8,2610.2,0.38308]
[1727053794947,0.38304,2610.6,2609.9,0.38313]
[1727053795156,0.38305,2610.5,2609.9,0.38313]
[1727053795341,4.16528,2610.9,2609.9,0.38313]
[1727053795342,0.38304,2610.6,2609.9,0.38313]
[1727053795855,4.16528,2610.9,2609.8,3.2078]
[1727053796059,0.38302,2610.7,2610.1,0.3831]
[1727053796241,3.2078,2610.9,2610.3,3.2078]
[1727053796443,3.2078,2610.9,2609.9,7.83034059]
[1727053796444,3.2078,2610.9,2610.2,7.83034059]
[1727053796648,3.2078,2610.6,2610.0,3.2078]
[1727053796844,0.38306,2610.4,2610.0,3.2078]
[1727053797956,3.59084,2610.6,2610.0,3.59091]
[1727053798254,3.2078,2610.6,2610.1,0.3831]
[1727053798647,3.59083,2610.6,2610.0,3.59091]
[1727053799051,3.59083,2610.6,2610.1,0.3831]
[1727053799259,3.59084,2610.6,2610.0,3.59091]
[1727053799456,0.38306,2610.4,2610.0,3.2078]
[1727053799656,0.38305,2610.5,2610.0,3.2078]
[1727053799954,0.95748,2610.9,2610.3,3.2078]
[1727053799955,3.2078,2610.9,2610.3,3.2078]
[1727053800146,3.2078,2611.2,2610.7,0.38301]
[1727053800453,0.38294,2611.3,2610.4,1.2765]
[1727053800454,3.2078,2611.1,2610.4,1.2765]
[1727053800653,3.2078,2611.4,2611.1,0.38295]
[1727053800853,3.59066,2611.8,2611.2,0.38293]
[1727053801045,3.2078,2611.8,2611.3,0.38292]
[1727053801248,3.2078,2612.2,2611.0,2.9]
[1727053801448,3.2078,2612.2,2611.2,3.2078]
[1727053801643,0.6052,2612.3,2610.8,3.5908]
[1727053801644,0.38293,2611.3,2610.8,3.5908]
[1727053801855,0.38292,2611.4,2610.9,0.38298]
[1727053802047,3.2078,2611.4,2610.7,7.93379858]
[1727053802248,2.9,2612.0,2610.4,1.2765]
[1727053802249,1.62142,2611.6,2610.4,1.2765]
[1727053802552,0.38294,2611.3,2610.6,0.38302]
[1727053802742,1.62142,2611.6,2609.9,3.2078]
[1727053802743,3.2078,2611.1,2609.9,3.2078]
[1727053802946,4.16534,2610.8,2609.9,3.2078]
[1727053803154,0.38306,2610.4,2609.9,3.2078]
[1727053803354,3.2078,2610.5,2609.5,0.38318]
[1727053803543,3.2078,2610.5,2609.7,0.38315]
[1727053803752,0.38307,2610.4,2609.7,0.38315]
[1727053804153,0.38312,2610.0,2609.2,0.38323]
[1727053804346,4.16545,2610.5,2609.4,3.2078]
[1727053804654,3.2078,2609.9,2608.8,3.2078]
[1727053804859,0.38321,2609.4,2608.8,3.2078]
[1727053805056,0.6303,2609.8,2608.8,3.2078]
[1727053805263,0.6303,2609.8,2609.0,0.38326]
[1727053805554,0.6303,2609.8,2609.2,3.2078]
[1727053805763,0.38317,2609.7,2609.2,3.2078]
[1727053806153,3.2078,2609.3,2608.5,3.8489]
[1727053806352,3.59101,2609.4,2608.5,1.02444]
[1727053806550,0.6298,2609.6,2608.5,0.6411]
[1727053806751,3.2078,2609.4,2608.5,3.8489]
[1727053806949,0.38324,2609.2,2608.5,3.8489]
[1727053807151,0.38324,2609.2,2608.5,0.6411]
[1727053807348,0.38332,2608.6,2607.6,3.59126]
[1727053807557,0.95801,2609.5,2606.5,0.384]
[1727053807558,3.59112,2608.7,2608.0,3.2078]
[1727053807747,0.38334,2608.5,2607.5,0.38348]
[1727053807947,3.2078,2608.4,2607.5,0.38348]
[1727053808257,3.2078,2608.4,2607.4,3.2078]
[1727053808762,0.38338,2608.3,2607.4,3.2078]
[1727053809255,3.2078,2608.4,2607.7,3.2078]
[1727053809854,3.2078,2608.4,2607.5,2.9]
[1727053810153,3.59115,2608.4,2607.5,2.9]
[1727053810345,3.59115,2608.4,2607.5,3.28347]
[1727053810549,3.2078,2608.4,2607.6,0.38347]
[1727053810751,3.2078,2608.4,2607.7,3.2078]
[1727053810752,3.59115,2608.4,2607.7,3.2078]
[1727053811462,3.2078,2608.1,2607.3,4.51]
[1727053811757,3.2078,2608.1,2607.3,3.2078]
[1727053811957,0.5921,2608.0,2607.3,3.2078]
[1727053812262,0.38343,2607.9,2607.3,3.2078]
[1727053812453,0.5921,2608.0,2607.3,3.2078]
[1727053812655,0.5921,2608.0,2607.4,0.3835]
[1727053813159,0.5921,2608.0,2607.3,3.59131]
[1727053813361,3.2078,2608.1,2607.3,3.2078]
[1727053813556,3.2078,2608.1,2607.4,1.00919]
[1727053814359,0.38344,2607.9,2607.4,0.6257]
[1727053814550,3.2078,2608.1,2607.4,0.6257]
[1727053814746,0.38343,2607.9,2607.4,0.6257]
[1727053814957,3.2078,2608.1,2607.3,3.2078]
[1727053815958,3.5912,2608.1,2607.3,6.1078]
[1727053816153,3.5912,2608.1,2607.3,3.2078]
[1727053816154,0.38345,2607.8,2607.3,3.2078]
[1727053816459,0.38343,2607.9,2607.3,3.2078]
[1727053816954,0.6329,2608.4,2606.7,3.2078]
[1727053816955,3.2078,2607.5,2606.7,3.2078]
[1727053817351,3.2078,2607.5,2607.0,0.38355]
[1727053817547,3.2078,2607.5,2606.7,11.46805433]
[1727053817548,3.2078,2607.5,2606.9,0.38357]
[1727053817853,3.2078,2607.5,2606.8,0.38359]
[1727053818155,0.38348,2607.6,2607.0,0.38356]
[1727053818764,0.38348,2607.6,2606.9,0.38357]
[1727053819257,3.2078,2607.5,2606.7,3.2078]
[1727053819455,3.2078,2607.2,2606.5,3.2078]
[1727053819652,0.38359,2606.8,2606.2,0.38367]
[1727053819851,0.38361,2606.7,2606.1,0.38368]
[1727053820047,3.2078,2606.6,2606.0,3.2078]
[1727053820256,3.2078,2606.6,2606.1,0.38368]
[1727053820451,3.2078,2606.6,2606.0,0.3837]
[1727053820653,3.59142,2606.6,2605.9,0.38371]
[1727053820857,3.2078,2606.6,2606.0,0.3837]
[1727053821357,0.38363,2606.5,2605.9,3.2078]
[1727053821558,3.2078,2606.6,2605.9,3.59152]
[1727053821861,3.2078,2606.6,2605.9,3.2078]
[1727053821862,0.38363,2606.5,2605.9,3.2078]
[1727053822163,0.38363,2606.5,2605.9,3.59152]
[1727053822352,0.38363,2606.5,2605.9,3.2078]
[1727053822553,0.38363,2606.5,2605.9,3.59151]
[1727053822861,0.95881,2607.3,2606.1,0.38368]
[1727053822862,0.3836,2606.8,2606.1,0.38368]
[1727053823056,0.38361,2606.7,2606.0,0.38369]
[1727053823367,3.2078,2606.9,2606.0,0.3837]
[1727053823658,3.04127233,2607.5,2605.6,3.2078]
[1727053823659,3.2078,2606.2,2605.6,3.2078]
[1727053823859,0.38374,2605.8,2605.6,3.2078]
[1727053824064,0.38374,2605.8,2605.2,0.38382]
[1727053824065,3.2078,2605.8,2605.2,3.2078]
[1727053824258,3.2078,2605.5,2604.9,0.656]
[1727053824454,0.38382,2605.3,2604.6,3.59171]
[1727053824759,1.2368,2606.3,2604.7,0.38389]
[1727053824760,3.2078,2605.1,2604.7,0.38389]
[1727053824956,3.2078,2605.1,2604.3,3.2078]
[1727053825152,1.2368,2606.3,2604.1,5.32019439]
[1727053825153,3.59168,2604.8,2604.1,5.32019439]
[1727053825352,3.2078,2604.8,2604.0,3.2078]
[1727053825558,0.38394,2604.4,2603.5,0.6103]
[1727053825752,3.85969,2604.9,2603.0,0.96034]
[1727053825753,3.2078,2604.1,2603.0,6.1078]
[1727053825955,0.38404,2603.8,2603.3,3.2078]
[1727053826261,0.95987,2604.4,2602.6,0.9945]
[1727053826262,3.2078,2603.5,2602.6,0.9945]
[1727053826465,3.2078,2603.5,2602.7,0.38419]
[1727053826664,41.76003,2604.0,2602.6,3.8181]
[1727053826665,3.2078,2603.8,2602.9,0.38415]
[1727053826956,0.38405,2603.7,2602.9,0.38415]
[1727053827161,3.2078,2603.8,2602.9,0.38415]
[1727053827162,3.2078,2603.8,2602.9,3.2078]
[1727053827460,3.2078,2603.3,2602.9,3.2078]
[1727053827960,0.38408,2603.5,2602.9,3.2078]
[1727053828159,3.59191,2603.3,2602.9,3.2078]
[1727053828355,3.2078,2603.3,2602.9,3.2078]
[1727053828562,3.2078,2603.3,2602.9,7.0494]
[1727053828866,3.2078,2603.7,2603.1,0.38413]
[1727053829057,3.2078,2604.1,2603.3,0.38409]
[1727053829258,3.2078,2604.1,2603.0,7.83069096]
[1727053829561,3.2078,2604.1,2603.0,2.9]
[1727053829756,3.2078,2604.1,2603.5,0.38406]
[1727053830062,3.2078,2604.5,2603.5,3.2078]
[1727053830255,3.2078,2604.5,2603.9,3.2078]
[1727053830452,3.59173,2604.5,2603.6,0.38405]
[1727053830651,3.2078,2604.5,2603.5,3.2078]
[1727053831054,3.2078,2604.5,2603.7,0.38404]
[1727053831255,3.2078,2604.5,2603.5,3.2078]
[1727053831454,3.2078,2604.5,2603.9,0.384]
[1727053831869,3.2078,2604.5,2603.7,2.9]
[1727053832164,0.38386,2605.0,2604.2,3.2078]
[1727053832383,0.38387,2604.9,2604.2,3.59176]
[1727053832661,3.2078,2605.1,2604.4,0.38394]
[1727053832866,3.2078,2605.1,2604.5,3.2078]
[1727053833061,0.38387,2605.0,2604.2,3.2078]
[1727053833363,3.2078,2604.8,2604.2,3.2078]
[1727053833565,3.59169,2604.8,2604.2,3.2078]
[1727053833954,3.2078,2604.8,2604.2,3.2078]
[1727053834153,3.2078,2605.3,2604.5,0.38392]
[1727053834369,3.2078,2605.3,2604.2,3.2078]
[1727053834668,3.2078,2605.3,2604.8,0.38388]
[1727053834856,3.2078,2605.3,2604.6,0.3839]
[1727053835261,3.2078,2605.3,2604.5,3.2078]
[1727053835478,3.2078,2605.3,2605.0,0.38384]
[1727053835759,3.2078,2605.3,2605.0,0.38385]
[1727053836258,3.2078,2605.3,2604.8,3.2078]
[1727053836259,3.59155,2605.7,2604.8,3.2078]
[1727053836453,3.59155,2605.7,2605.1,0.38383]
[1727053836454,3.2078,2605.7,2605.1,0.38383]
[1727053836657,3.2078,2605.7,2604.9,2.9]
[1727053836853,3.59156,2605.7,2605.1,0.38383]
[1727053837059,3.2078,2605.7,2604.9,2.9]
[1727053837259,0.95905,2606.6,2604.9,2.9]
[1727053837260,3.2078,2606.1,2605.6,2.9]
[1727053837457,3.2078,2606.7,2605.6,2.9]
[1727053837656,0.38367,2606.3,2605.7,0.38374]
[1727053837857,3.2078,2606.5,2605.7,0.38374]
[1727053838056,0.38365,2606.4,2605.7,0.38374]
[1727053838772,0.38365,2606.4,2605.1,0.6007]
[1727053838773,3.2078,2606.3,2605.1,0.6007]
[1727053838956,3.2078,2606.3,2605.4,0.38379]
[1727053838957,0.3837,2606.1,2605.4,0.38379]
[1727053839162,3.2078,2606.0,2605.1,0.98453]
[1727053839365,0.38375,2605.8,2605.1,0.6007]
[1727053839755,0.38377,2605.6,2605.0,0.647]
[1727053839961,0.38382,2605.3,2604.5,3.59172]
[1727053840160,0.38383,2605.2,2604.5,3.59172]
[1727053840365,0.38383,2605.2,2604.5,3.2078]
[1727053840561,3.2078,2605.4,2604.5,3.2078]
[1727053840760,0.38388,2604.9,2604.4,3.2078]
[1727053841157,3.59164,2605.1,2604.4,3.59174]
[1727053841462,0.38387,2604.9,2604.2,1.00947]
[1727053841671,3.2078,2604.8,2603.9,3.8548]
[1727053841857,0.38387,2604.9,2604.2,3.59177]
[1727053842057,0.38387,2604.9,2604.3,3.2078]
[1727053842471,3.2078,2605.1,2604.3,3.2078]
[1727053842661,3.2078,2605.1,2604.5,0.38393]
[1727053842859,0.38384,2605.1,2604.6,3.2078]
[1727053843358,0.38384,2605.1,2604.4,0.38393]
[1727053843864,3.5916,2605.4,2604.7,0.38389]
[1727053844066,0.38379,2605.5,2604.8,0.38387]
[1727053844273,3.2078,2605.7,2605.0,6.1078]
[1727053844564,0.38373,2605.9,2605.2,0.38382]
[1727053844767,3.8429,2606.0,2605.3,0.3838]
[1727053844768,4.22661,2606.0,2605.3,0.3838]
[1727053844970,4.22661,2606.0,2605.3,3.5916]
[1727053845166,0.95906,2606.6,2605.3,3.5916]
[1727053845167,3.2078,2606.6,2605.6,3.2078]
[1727053845367,0.38367,2606.3,2605.3,6.1078]
[1727053845673,0.38367,2606.3,2605.7,0.38375]
[1727053845970,0.38367,2606.3,2605.6,3.59156]
[1727053846170,3.59146,2606.4,2605.7,3.59154]
[1727053846474,3.2078,2606.4,2606.1,0.38368]
[1727053846766,0.6351,2607.0,2606.1,3.2078]
[1727053846767,3.2078,2606.7,2606.1,3.2078]
[1727053846971,3.2078,2606.7,2606.4,0.38365]
[1727053847175,3.2078,2607.7,2606.6,3.2078]
[1727053847362,0.38356,2607.0,2606.1,6.1078]
[1727053847561,0.38356,2607.1,2606.4,0.38364]
[1727053847762,0.38356,2607.1,2606.4,3.2078]
[1727053847763,0.38355,2607.1,2606.4,3.2078]
[1727053847966,3.2078,2607.0,2606.4,3.2078]
[1727053848369,3.2078,2607.3,2606.5,2.9]
[1727053848570,3.59132,2607.3,2606.5,2.9]
[1727053848766,3.2078,2607.3,2606.6,0.38362]
[1727053849375,3.2078,2607.3,2606.7,0.3836]
[1727053849665,3.2078,2607.3,2606.6,0.38361]
[1727053849874,0.38354,2607.2,2606.4,3.2078]
[1727053850175,3.2078,2607.3,2606.6,0.38361]
[1727053850359,3.2078,2607.3,2606.4,3.2078]
[1727053850565,3.2078,2607.3,2606.8,0.38359]
[1727053850772,3.2078,2607.3,2606.6,0.38361]
[1727053851372,3.2078,2607.3,2606.8,0.38359]
[1727053851585,3.2078,2607.6,2607.1,0.38353]
[1727053851769,0.3835,2607.5,2606.7,3.2078]
[1727053851982,0.3835,2607.5,2606.8,0.38358]
[1727053852275,0.38348,2607.5,2606.7,3.5914]
[1727053852575,3.59128,2607.6,2606.8,0.38359]
[1727053852772,0.38352,2607.3,2606.7,3.2078]
[1727053852977,0.3835,2607.4,2606.7,3.2078]
[1727053853270,0.38349,2607.5,2606.8,0.38359]
[1727053854479,3.2078,2607.6,2606.7,3.2078]
[1727053854886,0.38352,2607.3,2606.7,3.2078]
[1727053855667,3.2078,2606.8,2606.0,3.59149]
[1727053855874,0.38361,2606.7,2606.0,3.2078]
[1727053856072,3.2078,2606.8,2606.4,0.38364]
[1727053856374,3.2078,2607.1,2606.5,0.38363]
[1727053856575,3.59135,2607.1,2606.4,0.38364]
[1727053856773,0.38356,2607.0,2606.3,3.59145]
[1727053856973,3.2078,2607.1,2606.3,3.59145]
[1727053856974,0.38358,2606.9,2606.3,3.2078]
[1727053857168,0.38358,2606.9,2606.3,3.59146]
[1727053857683,3.2078,2607.1,2606.5,0.38363]